[Event "Nordic Chess-ch 2019"]
[Site "Sarpsborg"]
[Date "2019.06.23"]
[Round "4.40"]
[White "Lilleng, Gunnar"]
[Black "Lunde, Sigmund"]
[Result "0-1"]
[ECO "D03"]
[WhiteElo "1485"]
[BlackElo "1834"]
[Annotator "NA"]
[PlyCount "92"]
[EventDate "2019.06.21"]
[EventType "swiss"]
[EventCountry "NOR"]
[SourceTitle "playchess.com"]
[Source "ChessBase"]
[SourceQuality "1"]
[TimeControl "40/5400+30:1800+30"]

1. d4 {[%emt 0:00:00]} d5 {[%emt 0:00:00]} 2. c3 {[%emt 0:00:24]} Nf6 {[%emt 0:02:06]} 3. Nf3 {[%emt 0:01:54]} g6 {[%emt 0:01:03]} 4. Bg5 {[%emt 0:00:29]} Bg7 {[%emt 0:02:32]} 5. Nbd2 {[%emt 0:04:13]} O-O {[%emt 0:07:06]} 6. e3 {[%emt 0:02:18]} b6 {[%emt 0:10:28]} 7. Bd3 {[%emt 0:03:08]} Bb7 {[%emt 0:00:47]} 8. O-O {[%emt 0:01:32]} Nbd7 {[%emt 0:04:29]} 9. Re1 {[%emt 0:04:20]} Ne4 {[%emt 0:00:41]} 10. Bh4 {[%emt 0:00:49]} Qe8 {[%emt 0:04:40]} 11. Ng5 {[%emt 0:08:52]} Nxg5 {[%emt 0:06:36]} 12. Bxg5 {[%emt 0:00:14]} f6 {[%emt 0:03:12]} 13. Bf4 {[%emt 0:01:35]} e5 {[%emt 0:00:35]} 14. dxe5 {[%emt 0:00:19]} Nxe5 {[%emt 0:04:18]} 15. Bf1 {[%emt 0:01:21]} Rd8 {[%emt 0:01:35]} 16. Qc2 {[%emt 0:01:56]} c5 {[%emt 0:03:05]} 17. Rad1 {[%emt 0:01:38]} Qc6 {[%emt 0:01:40]} 18. Qb3 {[%emt 0:02:57]} Kh8 {[%emt 0:03:09]} 19. Bb5 {[%emt 0:09:45]} Qc8 {[%emt 0:01:25]} 20. Bf1 {[%emt 0:01:13]} Qf5 {[%emt 0:02:01]} 21. c4 {[%emt 0:08:24]} d4 {[%emt 0:01:34]} 22. Bg3 {[%emt 0:00:32]} Bh6 {[%emt 0:03:31]} 23. e4 {[%emt 0:06:12]} Qe6 {[%emt 0:01:41]} 24. f3 {[%emt 0:03:10]} Ba6 {[%emt 0:05:11]} 25. Qc2 {[%emt 0:01:42]} Bxd2 {[%emt 0:07:53]} 26. Qxd2 {[%emt 0:05:30]} Bxc4 {[%emt 0:03:12]} 27. b3 {[%emt 0:07:00]} Bxf1 {[%emt 0:00:10]} 28. Rxf1 {[%emt 0:03:32]} Nf7 {[%emt 0:01:25]} 29. Rde1 {[%emt 0:00:51]} Qc6 {[%emt 0:01:01]} 30. Rc1 {[%emt 0:02:50]} b5 {[%emt 0:03:02]} 31. Rc2 {[%emt 0:00:24]} c4 {[%emt 0:02:13]} 32. Qc1 {[%emt 0:03:18]} Rc8 {[%emt 0:01:23]} 33. Rd1 {[%emt 0:01:23]} Rfd8 {[%emt 0:00:38]} 34. b4 {[%emt 0:02:30]} c3 {[%emt 0:01:52]} 35. Rd3 {[%emt 0:00:49]} Qc4 {[%emt 0:00:21]} 36. Qd1 {[%emt 0:02:15]} Ne5 {[%emt 0:00:26]} 37. Bxe5 {[%emt 0:00:48]} fxe5 {[%emt 0:00:08]} 38. a3 {[%emt 0:00:10]} Rf8 {[%emt 0:01:28]} 39. Kf2 {[%emt 0:00:38]} Qb3 {[%emt 0:00:16]} 40. Qc1 {[%emt 0:00:19]} Rc6 {[%emt 0:01:06]} 41. h3 {[%emt 0:31:09]} Kg7 {[%emt 0:31:03]} 42. Ke2 {[%emt 0:04:09]} Ra6 {[%emt 0:03:10]} 43. h4 {[%emt 0:02:31]} Rxa3 {[%emt 0:01:18]} 44. Rcxc3 {[%emt 0:00:18]} Ra2+ {[%emt 0:01:09]} 45. Kf1 {[%emt 0:01:27]} dxc3 {[%emt 0:00:15]} 46. Rd7+ {[%emt 0:00:14]} Rf7 {[%emt 0:00:42]} 0-1

[Event "Nordic Chess-ch 2019"]
[Site "Sarpsborg"]
[Date "2019.06.23"]
[Round "4.41"]
[White "Stabbetorp, Hans"]
[Black "Heikkila, Raine"]
[Result "1/2-1/2"]
[ECO "D02"]
[WhiteElo "1767"]
[BlackElo "1663"]
[Annotator "NA"]
[PlyCount "92"]
[EventDate "2019.06.21"]
[EventType "swiss"]
[EventCountry "NOR"]
[SourceTitle "playchess.com"]
[Source "ChessBase"]
[SourceQuality "1"]
[TimeControl "40/5400+30:1800+30"]

1. d4 {[%emt 0:00:00]} d5 {[%emt 0:00:00]} 2. Nf3 {[%emt 0:00:00]} h6 {[%emt 0:00:00]} 3. Bf4 {[%emt 0:00:00]} Nf6 {[%emt 0:00:02]} 4. h3 {[%emt 0:00:08]} Nc6 {[%emt 0:00:18]} 5. e3 {[%emt 0:00:12]} a6 {[%emt 0:00:12]} 6. Nbd2 {[%emt 0:00:25]} Bf5 {[%emt 0:00:14]} 7. a3 {[%emt 0:01:07]} e6 {[%emt 0:00:14]} 8. c4 {[%emt 0:00:16]} Bd6 {[%emt 0:00:20]} 9. Bxd6 {[%emt 0:02:17]} cxd6 {[%emt 0:00:32]} 10. Rc1 {[%emt 0:00:37]} dxc4 {[%emt 0:02:45]} 11. Bxc4 {[%emt 0:00:55]} O-O {[%emt 0:00:14]} 12. O-O {[%emt 0:01:49]} d5 {[%emt 0:00:08]} 13. Be2 {[%emt 0:01:34]} Ne4 {[%emt 0:01:05]} 14. b4 {[%emt 0:02:11]} Qd6 {[%emt 0:00:48]} 15. Nxe4 {[%emt 0:01:44]} dxe4 {[%emt 0:00:27]} 16. Nd2 {[%emt 0:00:04]} Rfd8 {[%emt 0:02:35]} 17. Nc4 {[%emt 0:02:54]} Qe7 {[%emt 0:00:10]} 18. Bg4 {[%emt 0:03:14]} Bh7 {[%emt 0:03:19]} 19. Qc2 {[%emt 0:04:37]} Qg5 {[%emt 0:01:37]} 20. Qb2 {[%emt 0:07:10]} h5 {[%emt 0:00:53]} 21. Bd1 {[%emt 0:00:47]} Bf5 {[%emt 0:00:34]} 22. Kh2 {[%emt 0:04:16]} Qh4 {[%emt 0:00:58]} 23. f3 {[%emt 0:04:30]} Rac8 {[%emt 0:03:04]} 24. fxe4 {[%emt 0:02:02]} Bg6 {[%emt 0:03:08]} 25. e5 {[%emt 0:06:18]} Ne7 {[%emt 0:01:12]} 26. Nd6 {[%emt 0:08:39]} Rxc1 {[%emt 0:02:47]} 27. Qxc1 {[%emt 0:00:05]} Rf8 {[%emt 0:05:06]} 28. Bc2 {[%emt 0:07:46]} Qg5 {[%emt 0:03:53]} 29. Bxg6 {[%emt 0:01:45]} Qxg6 {[%emt 0:00:10]} 30. Nxb7 {[%emt 0:02:35]} Rc8 {[%emt 0:02:54]} 31. Nc5 {[%emt 0:04:00]} Nf5 {[%emt 0:01:04]} 32. Qe1 {[%emt 0:01:16]} h4 {[%emt 0:00:56]} 33. Rf4 {[%emt 0:04:17]} Qg5 {[%emt 0:00:51]} 34. Qf2 {[%emt 0:02:39]} Qg3+ {[%emt 0:01:33]} 35. Qxg3 {[%emt 0:00:17]} hxg3+ {[%emt 0:00:02]} 36. Kg1 {[%emt 0:00:30]} Nxe3 {[%emt 0:00:59]} 37. Rf3 {[%emt 0:02:11]} Nf5 {[%emt 0:00:10]} 38. d5 {[%emt 0:00:37]} Nd4 {[%emt 0:00:50]} 39. Rxg3 {[%emt 0:02:48]} Ne2+ {[%emt 0:00:12]} 40. Kf2 {[%emt 0:00:03]} Nxg3 {[%emt 0:00:43]} 41. Kxg3 {[%emt 0:30:12]} exd5 {[%emt 0:30:12]} 42. Kf4 {[%emt 0:00:57]} Rc6 {[%emt 0:00:20]} 43. Ke3 {[%emt 0:00:23]} Kf8 {[%emt 0:00:37]} 44. Kd4 {[%emt 0:00:08]} Ke7 {[%emt 0:01:31]} 45. Kxd5 {[%emt 0:00:04]} Rb6 {[%emt 0:00:58]} 46. Nd3 {[%emt 0:03:48]} Kd7 {[%emt 0:01:25]} 1/2-1/2

[Event "Nordic Chess-ch 2019"]
[Site "Sarpsborg"]
[Date "2019.06.23"]
[Round "4.42"]
[White "Thorvlaksson, Baldvin"]
[Black "Eriksen, Oddvar"]
[Result "1/2-1/2"]
[ECO "B50"]
[WhiteElo "1523"]
[BlackElo "1520"]
[Annotator "NA"]
[PlyCount "54"]
[EventDate "2019.06.21"]
[EventType "swiss"]
[EventCountry "NOR"]
[SourceTitle "playchess.com"]
[Source "ChessBase"]
[SourceQuality "1"]
[TimeControl "40/5400+30:1800+30"]

1. e4 {[%emt 0:00:00]} c5 {[%emt 0:00:00]} 2. Nf3 {[%emt 0:00:04]} Nc6 {[%emt 0:00:00]} 3. b3 {[%emt 0:00:42]} e5 {[%emt 0:00:09]} 4. Bb2 {[%emt 0:00:37]} d6 {[%emt 0:00:29]} 5. Be2 {[%emt 0:01:35]} Nf6 {[%emt 0:00:18]} 6. d3 {[%emt 0:00:21]} Be7 {[%emt 0:00:33]} 7. Nbd2 {[%emt 0:00:46]} O-O {[%emt 0:00:38]} 8. Nc4 {[%emt 0:00:56]} b5 {[%emt 0:00:29]} 9. Ne3 {[%emt 0:00:14]} b4 {[%emt 0:00:22]} 10. Kd2 {[%emt 0:08:50]} Nd4 {[%emt 0:02:12]} 11. Qg1 {[%emt 0:05:35]} Nxe2 {[%emt 0:03:03]} 12. Kxe2 {[%emt 0:00:09]} Ba6 {[%emt 0:00:34]} 13. Nd2 {[%emt 0:01:33]} g6 {[%emt 0:01:56]} 14. Rf1 {[%emt 0:02:42]} Nh5 {[%emt 0:00:44]} 15. Nd5 {[%emt 0:01:44]} Bb7 {[%emt 0:01:42]} 16. g4 {[%emt 0:01:03]} Nf4+ {[%emt 1:24:51]} 17. Nxf4 {[%emt 1:11:39]} exf4 {[%emt 0:00:00]} 18. Nf3 {[%emt 0:00:00]} Bf6 {[%emt 0:00:00]} 19. Bc1 {[%emt 0:00:00]} d5 {[%emt 0:00:00]} 20. e5 {[%emt 0:00:00]} Bg7 {[%emt 0:00:00]} 21. Bxf4 {[%emt 0:00:00]} d4 {[%emt 0:02:30]} 22. Qg3 {[%emt 0:02:30]} Re8 {[%emt 0:00:00]} 23. Kd2 {[%emt 0:00:00]} Qd5 {[%emt 0:00:00]} 24. Ng5 {[%emt 0:00:00]} h6 {[%emt 0:00:00]} 25. Ne4 {[%emt 0:00:00]} Bxe5 {[%emt 0:02:00]} 26. Bxe5 {[%emt 0:02:00]} Qxe5 {[%emt 0:00:00]} 27. Qxe5 {[%emt 0:00:00]} Rxe5 {[%emt 0:00:00]} 1/2-1/2

[Event "Nordic Chess-ch 2019"]
[Site "Sarpsborg"]
[Date "2019.06.24"]
[Round "5.5"]
[White "Hobber, Anders"]
[Black "Holm, Kristian Stuvik"]
[Result "1/2-1/2"]
[ECO "B15"]
[WhiteElo "2282"]
[BlackElo "2474"]
[Annotator "RC"]
[PlyCount "62"]
[EventDate "2019.06.21"]
[EventType "swiss"]
[EventCountry "NOR"]
[SourceTitle "playchess.com"]
[Source "ChessBase"]
[SourceQuality "1"]
[TimeControl "40/5400+30:1800+30"]

1. d4 {[%emt 0:00:00]} g6 {[%emt 0:01:06]} 2. e4 {[%emt 0:01:17]} Bg7 {[%emt 0:01:28]} 3. Nc3 {[%emt 0:01:03]} c6 {[%emt 0:03:39]} 4. Nf3 {[%emt 0:01:32]} d5 {[%emt 0:02:15]} 5. h3 {[%emt 0:03:39]} Nh6 {[%emt 0:08:33]} 6. Bd3 {[%emt 0:06:43]} O-O {[%emt 0:00:40]} 7. O-O {[%emt 0:00:37]} f6 {[%emt 0:00:19]} 8. Re1 {[%emt 0:06:19]} Nf7 {[%emt 0:00:47]} 9. e5 {[%emt 0:11:42]} fxe5 {[%emt 0:02:20]} 10. dxe5 {[%emt 0:01:02]} e6 {[%emt 0:01:08]} 11. Bf4 {[%emt 0:05:40]} c5 {[%emt 0:05:00]} 12. Qd2 {[%emt 0:05:32]} Nc6 {[%emt 0:03:11]} 13. h4 {[%emt 0:11:21]} a6 {[%emt 0:19:19]} 14. h5 {[%emt 0:09:15]} gxh5 {[%emt 0:00:40]} 15. Rad1 {[%emt 0:10:13]} c4 {[%emt 0:08:56]} 16. Bf1 {[%emt 0:00:36]} Nh8 {[%emt 0:00:21]} 17. Bh6 {[%emt 0:04:12]} Ng6 {[%emt 0:02:14]} 18. Bxg7 {[%emt 0:01:19]} Kxg7 {[%emt 0:00:05]} 19. Qe3 {[%emt 0:02:56]} Qe7 {[%emt 0:01:25]} 20. Ne2 {[%emt 0:02:26]} h4 {[%emt 0:03:31]} 21. Ned4 {[%emt 0:00:28]} Nd8 {[%emt 0:04:58]} 22. b3 {[%emt 0:02:36]} b5 {[%emt 0:02:02]} 23. g3 {[%emt 0:02:50]} hxg3 {[%emt 0:03:36]} 24. fxg3 {[%emt 0:00:03]} Bd7 {[%emt 0:00:59]} 25. Rd2 {[%emt 0:00:32]} Nf7 {[%emt 0:03:47]} 26. Rh2 {[%emt 0:00:35]} Rh8 {[%emt 0:00:24]} 27. Ne2 {[%emt 0:02:26]} Rag8 {[%emt 0:05:57]} 28. Nf4 {[%emt 0:00:33]} Nxf4 {[%emt 0:01:13]} 29. gxf4 {[%emt 0:00:27]} Kf8+ {[%emt 0:01:18]} 30. Kh1 {[%emt 0:02:14]} Rg6 {[%emt 0:01:47]} 31. Nd4 {[%emt 0:01:24]} Bc8 {[%emt 0:02:26]} 1/2-1/2

[Event "Nordic Chess-ch 2019"]
[Site "Sarpsborg"]
[Date "2019.06.24"]
[Round "5.12"]
[White "Sahl, Sheila Barth"]
[Black "Tryggestad, Andreas Garberg"]
[Result "0-1"]
[ECO "A45"]
[WhiteElo "2127"]
[BlackElo "2324"]
[Annotator "NA"]
[PlyCount "67"]
[EventDate "2019.06.21"]
[EventType "swiss"]
[EventCountry "NOR"]
[SourceTitle "playchess.com"]
[Source "ChessBase"]
[SourceQuality "1"]
[TimeControl "40/5400+30:1800+30"]

1. d4 {[%emt 0:00:00]} Nf6 {[%emt 0:00:00]} 2. Bf4 {[%emt 0:00:00]} g6 {[%emt 0:00:00]} 3. Nc3 {[%emt 0:00:33]} d5 {[%emt 0:00:00]} 4. e3 {[%emt 0:01:03]} Bg7 {[%emt 0:00:00]} 5. h4 {[%emt 0:00:39]} c5 {[%emt 0:06:55]} 6. Nb5 {[%emt 0:00:27]} Na6 {[%emt 0:00:07]} 7. c3 {[%emt 0:00:38]} Bd7 {[%emt 0:04:36]} 8. a4 {[%emt 0:01:00]} O-O {[%emt 0:15:35]} 9. Be2 {[%emt 0:02:44]} c4 {[%emt 0:10:18]} 10. b3 {[%emt 0:09:26]} cxb3 {[%emt 0:05:37]} 11. Qxb3 {[%emt 0:00:49]} Qa5 {[%emt 0:00:08]} 12. Rc1 {[%emt 0:06:09]} Rac8 {[%emt 0:03:55]} 13. Nf3 {[%emt 0:11:54]} Nb8 {[%emt 0:11:01]} 14. O-O {[%emt 0:02:54]} Nc6 {[%emt 0:12:25]} 15. c4 {[%emt 0:03:22]} dxc4 {[%emt 0:00:44]} 16. Bxc4 {[%emt 0:00:42]} Qb6 {[%emt 0:01:42]} 17. Ng5 {[%emt 0:06:21]} Be8 {[%emt 0:01:29]} 18. Qa2 {[%emt 0:22:54]} h6 {[%emt 0:06:13]} 19. Ne6 {[%emt 0:03:10]} fxe6 {[%emt 0:00:06]} 20. Bxe6+ {[%emt 0:00:11]} Bf7 {[%emt 0:00:01]} 21. Bxf7+ {[%emt 0:01:02]} Rxf7 {[%emt 0:00:02]} 22. d5 {[%emt 0:01:02]} a6 {[%emt 0:00:27]} 23. Nd4 {[%emt 0:07:13]} Na7 {[%emt 0:00:32]} 24. Rb1 {[%emt 0:00:58]} Qd8 {[%emt 0:00:59]} 25. Rxb7 {[%emt 0:00:56]} Qxd5 {[%emt 0:00:24]} 26. Qxd5 {[%emt 0:08:07]} Nxd5 {[%emt 0:00:11]} 27. Ne6 {[%emt 0:00:08]} Nc6 {[%emt 0:01:43]} 28. Rc1 {[%emt 0:00:41]} Nxf4 {[%emt 0:04:17]} 29. exf4 {[%emt 0:00:17]} Rf6 {[%emt 0:00:16]} 30. Re1 {[%emt 0:01:53]} Kf7 {[%emt 0:00:33]} 31. Nc7 {[%emt 0:04:22]} Rb8 {[%emt 0:02:50]} 32. Rxb8 {[%emt 0:00:26]} Nxb8 {[%emt 0:00:02]} 33. g3 {[%emt 0:00:47]} Rd6 {[%emt 0:00:31]} 34. Rb1 {[%emt 0:00:21]} 0-1

[Event "Nordic Chess-ch 2019"]
[Site "Sarpsborg"]
[Date "2019.06.24"]
[Round "5.13"]
[White "Blauhut, Holger"]
[Black "Haugli, Petter"]
[Result "1-0"]
[ECO "C01"]
[WhiteElo "2041"]
[BlackElo "2223"]
[Annotator "NA"]
[PlyCount "71"]
[EventDate "2019.06.21"]
[EventType "swiss"]
[EventCountry "NOR"]
[SourceTitle "playchess.com"]
[Source "ChessBase"]
[SourceQuality "1"]
[TimeControl "40/5400+30:1800+30"]

1. e4 {[%emt 0:00:00]} e6 {[%emt 0:00:00]} 2. d4 {[%emt 0:00:00]} d5 {[%emt 0:00:00]} 3. Bd3 {[%emt 0:00:00]} dxe4 {[%emt 0:01:57]} 4. Bxe4 {[%emt 0:00:03]} Nf6 {[%emt 0:00:08]} 5. Bf3 {[%emt 0:00:17]} c5 {[%emt 0:09:08]} 6. Ne2 {[%emt 0:04:13]} Nc6 {[%emt 0:10:34]} 7. Be3 {[%emt 0:03:45]} cxd4 {[%emt 0:22:06]} 8. Nxd4 {[%emt 0:01:52]} Nxd4 {[%emt 0:00:13]} 9. Qxd4 {[%emt 0:00:46]} Qa5+ {[%emt 0:04:38]} 10. Nd2 {[%emt 0:03:45]} e5 {[%emt 0:02:37]} 11. Qd3 {[%emt 0:07:04]} Be7 {[%emt 0:05:31]} 12. O-O {[%emt 0:04:00]} O-O {[%emt 0:00:02]} 13. Ne4 {[%emt 0:11:26]} Qc7 {[%emt 0:02:45]} 14. Qc3 {[%emt 0:03:20]} Qxc3 {[%emt 0:03:22]} 15. Nxc3 {[%emt 0:03:45]} Bf5 {[%emt 0:00:13]} 16. Nd5 {[%emt 0:04:21]} Nxd5 {[%emt 0:09:44]} 17. Bxd5 {[%emt 0:00:06]} Rfd8 {[%emt 0:00:15]} 18. c4 {[%emt 0:00:49]} Rd7 {[%emt 0:01:53]} 19. Rfd1 {[%emt 0:01:11]} a6 {[%emt 0:00:54]} 20. Bb6 {[%emt 0:01:49]} Rc8 {[%emt 0:01:13]} 21. Re1 {[%emt 0:10:06]} Bd6 {[%emt 0:13:15]} 22. a3 {[%emt 0:07:17]} Re7 {[%emt 0:05:54]} 23. Rad1 {[%emt 0:03:06]} Bb8 {[%emt 0:02:43]} 24. b4 {[%emt 0:01:47]} g6 {[%emt 0:00:34]} 25. f3 {[%emt 0:03:35]} h5 {[%emt 0:00:47]} 26. h3 {[%emt 0:00:26]} Be6 {[%emt 0:01:21]} 27. Bc5 {[%emt 0:00:35]} Rd7 {[%emt 0:01:07]} 28. Bxe6 {[%emt 0:00:47]} Rxd1 {[%emt 0:00:03]} 29. Rxd1 {[%emt 0:02:48]} fxe6 {[%emt 0:00:01]} 30. Rd7 {[%emt 0:00:06]} Bc7 {[%emt 0:00:15]} 31. Be3 {[%emt 0:00:17]} Kf8 {[%emt 0:01:31]} 32. Bg5 {[%emt 0:03:10]} b6 {[%emt 0:00:17]} 33. Bf6 {[%emt 0:01:38]} Bb8 {[%emt 0:00:19]} 34. Rb7 {[%emt 0:00:42]} Bc7 {[%emt 0:00:18]} 35. Kf2 {[%emt 0:00:26]} Bd8 {[%emt 0:01:18]} 36. Bxd8 {[%emt 0:00:26]} 1-0

[Event "Nordic Chess-ch 2019"]
[Site "Sarpsborg"]
[Date "2019.06.24"]
[Round "5.14"]
[White "Sjoberg, Isak"]
[Black "Gonzalez, Francisco Silva"]
[Result "1-0"]
[ECO "C54"]
[WhiteElo "2222"]
[BlackElo "2095"]
[Annotator "ChessBase"]
[PlyCount "87"]
[EventDate "2019.06.21"]
[EventType "swiss"]
[EventCountry "NOR"]
[SourceTitle "playchess.com"]
[Source "ChessBase"]
[SourceQuality "1"]
[TimeControl "40/5400+30:1800+30"]

1. e4 {[%emt 1:30:30]} e5 {[%emt 0:25:15]} 2. Nf3 {[%emt 0:00:00]} Nc6 {[%emt 0:00:24]} 3. Bc4 {[%emt 0:00:00]} Bc5 {[%emt 0:00:18]} 4. c3 {[%emt 0:00:00]} Nf6 {[%emt 0:00:07]} 5. d3 {[%emt 0:00:00]} d6 {[%emt 0:00:10]} 6. O-O {[%emt 0:00:00]} O-O {[%emt 0:00:15]} 7. a4 {[%emt 0:00:00]} a6 {[%emt 0:00:21]} 8. Re1 {[%emt 0:00:00]} Ba7 {[%emt 0:00:19]} 9. h3 {[%emt 0:00:00]} Be6 {[%emt 0:02:23]} 10. Nbd2 {[%emt 0:00:00]} h6 {[%emt 0:02:47]} 11. Bb3 {[%emt 0:00:00]} Ne7 {[%emt 0:11:43]} 12. d4 {[%emt 0:00:00]} exd4 {[%emt 0:13:39]} 13. cxd4 {[%emt 0:00:00]} d5 {[%emt 0:00:43]} 14. e5 {[%emt 0:00:00]} Nd7 {[%emt 0:01:52]} 15. Bc2 {[%emt 0:00:00]} Bf5 {[%emt 0:00:23]} 16. b4 {[%emt 0:00:00]} c6 {[%emt 0:01:57]} 17. Ba3 {[%emt 0:00:00]} Re8 {[%emt 0:01:36]} 18. Rb1 {[%emt 0:00:00]} Nf8 {[%emt 0:01:24]} 19. b5 {[%emt 0:00:00]} Bxc2 {[%emt 0:06:42]} 20. Qxc2 {[%emt 0:00:00]} cxb5 {[%emt 0:00:17]} 21. axb5 {[%emt 0:00:00]} Ne6 {[%emt 0:00:14]} 22. Bxe7 {[%emt 0:00:00]} Rxe7 {[%emt 0:01:03]} 23. bxa6 {[%emt 0:00:00]} Rc7 {[%emt 0:01:25]} 24. Qd3 {[%emt 0:00:00]} bxa6 {[%emt 0:00:23]} 25. Ra1 {[%emt 0:00:00]} Rc6 {[%emt 0:00:58]} 26. Nb3 {[%emt 0:00:00]} Qc8 {[%emt 0:00:44]} 27. Rec1 {[%emt 0:00:00]} Rc4 {[%emt 0:04:24]} 28. Nfd2 {[%emt 0:00:00]} Nf4 {[%emt 0:02:39]} 29. Qf3 {[%emt 0:00:00]} Rxc1+ {[%emt 0:01:26]} 30. Rxc1 {[%emt 0:00:00]} Qf5 {[%emt 0:00:09]} 31. g4 {[%emt 0:00:00]} Qg5 {[%emt 0:09:14]} 32. h4 {[%emt 0:00:00]} Ne2+ {[%emt 0:00:07]} 33. Qxe2 {[%emt 0:00:00]} Qxh4 {[%emt 0:00:03]} 34. e6 {[%emt 0:00:57]} fxe6 {[%emt 0:03:34]} 35. Qxe6+ {[%emt 0:00:06]} Kh8 {[%emt 0:00:10]} 36. Rc8+ {[%emt 0:00:33]} Rxc8 {[%emt 0:00:12]} 37. Qxc8+ {[%emt 0:00:03]} Kh7 {[%emt 0:00:07]} 38. Kg2 {[%emt 0:01:59]} a5 {[%emt 0:00:28]} 39. Nf3 {[%emt 0:00:35]} Qf6 {[%emt 0:00:18]} 40. Nxa5 {[%emt 0:03:39]} Bxd4 {[%emt 0:00:06]} 41. Nb3 {[%emt 0:32:02]} Bc3 {[%emt 0:32:08]} 42. Nc5 {[%emt 0:01:01]} Qd6 {[%emt 0:04:31]} 43. Ne6 {[%emt 0:02:13]} Bb4 {[%emt 0:00:12]} 44. Neg5+ {[%emt 0:01:23]} 1-0

[Event "Nordic Chess-ch 2019"]
[Site "Sarpsborg"]
[Date "2019.06.24"]
[Round "5.15"]
[White "Kristiansen, Rune Harald"]
[Black "Thorn, Eric"]
[Result "1-0"]
[ECO "D24"]
[WhiteElo "1849"]
[BlackElo "2230"]
[Annotator "ChessBase"]
[PlyCount "123"]
[EventDate "2019.06.21"]
[EventType "swiss"]
[EventCountry "NOR"]
[SourceTitle "playchess.com"]
[Source "ChessBase"]
[SourceQuality "1"]
[TimeControl "40/5400+30:1800+30"]

1. d4 {[%emt 0:00:00]} Nf6 {[%emt 0:00:03]} 2. c4 {[%emt 0:01:16]} e6 {[%emt 0:00:07]} 3. Nf3 {[%emt 0:01:09]} d5 {[%emt 0:00:09]} 4. Bg5 {[%emt 0:03:23]} dxc4 {[%emt 0:03:47]} 5. Nc3 {[%emt 0:00:52]} a6 {[%emt 0:02:55]} 6. a4 {[%emt 0:10:47]} Nc6 {[%emt 0:10:25]} 7. e3 {[%emt 0:01:18]} Na5 {[%emt 0:03:18]} 8. Nd2 {[%emt 0:07:43]} Bb4 {[%emt 0:07:48]} 9. Nxc4 {[%emt 0:06:47]} Qd5 {[%emt 0:26:19]} 10. Bxf6 {[%emt 1:01:45]} gxf6 {[%emt 0:22:21]} 11. Nd2 {[%emt 0:05:31]} Qf5 {[%emt 0:01:16]} 12. Rc1 {[%emt 0:16:47]} Bd7 {[%emt 0:00:41]} 13. e4 {[%emt 0:11:19]} Qg6 {[%emt 0:01:29]} 14. Qc2 {[%emt 0:00:33]} c5 {[%emt 0:16:22]} 15. d5 {[%emt 0:01:24]} Rc8 {[%emt 0:01:37]} 16. g3 {[%emt 0:02:19]} c4 {[%emt 0:01:15]} 17. Bg2 {[%emt 0:01:09]} Nb3 {[%emt 0:01:42]} 18. Nxb3 {[%emt 0:12:20]} Bxa4 {[%emt 0:00:04]} 19. O-O {[%emt 0:10:29]} Bxb3 {[%emt 0:01:44]} 20. Qe2 {[%emt 0:00:16]} e5 {[%emt 0:02:11]} 21. Bh3 {[%emt 0:01:01]} Rd8 {[%emt 0:02:00]} 22. Kh1 {[%emt 0:01:50]} h5 {[%emt 0:01:05]} 23. Bf5 {[%emt 0:00:12]} Qh6 {[%emt 0:00:31]} 24. Rce1 {[%emt 0:04:14]} h4 {[%emt 0:04:48]} 25. g4 {[%emt 0:01:26]} Qf4 {[%emt 0:02:14]} 26. h3 {[%emt 0:00:17]} Bc5 {[%emt 0:01:23]} 27. Kg2 {[%emt 0:00:16]} Rd6 {[%emt 0:00:39]} 28. Ra1 {[%emt 0:00:45]} b5 {[%emt 0:01:21]} 29. Qe1 {[%emt 0:00:45]} Bc2 {[%emt 0:00:38]} 30. Ne2 {[%emt 0:00:37]} Qh6 {[%emt 0:00:28]} 31. f4 {[%emt 0:00:15]} Bd3 {[%emt 0:00:33]} 32. Kf3 {[%emt 0:00:32]} Bxe2+ {[%emt 0:00:26]} 33. Kxe2 {[%emt 0:00:07]} exf4 {[%emt 0:00:22]} 34. Kf3 {[%emt 0:01:43]} O-O {[%emt 0:00:29]} 35. Qa5 {[%emt 0:00:45]} Rfd8 {[%emt 0:00:41]} 36. Qe1 {[%emt 0:01:05]} Bd4 {[%emt 0:00:19]} 37. Qd2 {[%emt 0:00:29]} Rb8 {[%emt 0:00:43]} 38. Qxd4 {[%emt 0:00:15]} Qf8 {[%emt 0:00:26]} 39. Rg1 {[%emt 0:00:14]} Qd8 {[%emt 0:00:25]} 40. Rg2 {[%emt 0:01:00]} b4 {[%emt 0:00:39]} 41. Rag1 {[%emt 0:30:40]} Qb6 {[%emt 0:30:29]} 42. Qxb6 {[%emt 0:00:00]} Rdxb6 {[%emt 0:00:00]} 43. Rc2 {[%emt 0:00:00]} c3 {[%emt 0:00:00]} 44. bxc3 {[%emt 0:00:00]} b3 {[%emt 0:00:00]} 45. Rb2 {[%emt 0:00:00]} Rb5 {[%emt 0:00:00]} 46. c4 {[%emt 0:00:00]} Rb4 {[%emt 0:00:00]} 47. Rc1 {[%emt 0:00:00]} a5 {[%emt 0:00:00]} 48. c5 {[%emt 0:00:00]} a4 {[%emt 0:00:00]} 49. c6 {[%emt 0:00:00]} a3 {[%emt 0:00:00]} 50. c7 {[%emt 0:00:00]} Rf8 {[%emt 0:00:00]} 51. c8=Q {[%emt 0:00:00]} axb2 {[%emt 0:00:00]} 52. Qxf8+ {[%emt 0:00:00]} Kxf8 {[%emt 0:00:00]} 53. Rb1 {[%emt 0:00:00]} Rc4 {[%emt 0:00:00]} 54. Rxb2 {[%emt 0:00:00]} Rc3+ {[%emt 0:07:05]} 55. Kxf4 {[%emt 0:00:00]} Rxh3 {[%emt 0:07:35]} 56. d6 {[%emt 0:00:00]} Rc3 {[%emt 0:00:00]} 57. d7 {[%emt 0:00:00]} Ke7 {[%emt 0:00:00]} 58. Rd2 {[%emt 0:00:00]} Kd8 {[%emt 0:00:00]} 59. Rd4 {[%emt 0:09:39]} h3 {[%emt 0:00:00]} 60. Ra4 {[%emt 0:00:00]} Rd3 {[%emt 0:00:00]} 61. Ra8+ {[%emt 0:00:00]} Kc7 {[%emt 0:00:00]} 62. Rc8+ {[%emt 0:00:00]} 1-0